bitfinex/quotes_ETHUSD_20251126
["timestamp","ask_amount","ask_price","bid_price","bid_amount"]
[1764184287562,0.405504,3022.7,3022.4,0.1937]
[1764184287892,0.405504,3022.7,3022.5,0.001]
[1764184288276,3.30819108,3022.8,3022.5,0.001]
[1764184288277,1.95037351,3022.6,3022.5,0.001]
[1764184288756,5.25878348,3022.6,3022.5,0.001]
[1764184289563,4.76278348,3022.6,3022.5,0.001]
[1764184289764,4.29528348,3022.6,3022.5,0.001]
[1764184290794,0.615504,3022.6,3022.5,0.4764]
[1764184291288,3.92391397,3022.6,3022.5,0.4764]
[1764184291658,4.22716774,3022.6,3022.5,0.4764]
[1764184292273,0.405504,3022.6,3022.5,0.9682]
[1764184293879,3.80349944,3023.5,3022.5,0.9682]
[1764184293880,3.30712877,3023.8,3022.5,4.27671943]
[1764184294095,0.1855,3023.6,3022.8,0.4754]
[1764184294303,0.405504,3023.4,3022.8,0.4754]
[1764184294514,0.405504,3023.2,3022.8,0.4754]
[1764184294800,0.405504,3023.0,3022.8,0.4754]
[1764184295101,0.405504,3023.2,3022.8,0.4754]
[1764184295270,3.71347621,3023.0,3022.8,0.4754]
[1764184295470,0.70886891,3022.9,3022.8,0.4754]
[1764184295786,0.70886891,3022.9,3022.6,3.30837181]
[1764184296095,0.70886891,3022.9,3022.6,0.66178997]
[1764184296096,0.405504,3022.9,3022.6,0.66178997]
[1764184296398,0.405504,3022.9,3022.6,0.4918]
[1764184296693,0.405504,3023.0,3022.8,0.4754]
[1764184296901,0.30341398,3022.9,3022.8,0.4754]
[1764184297594,0.30341398,3022.9,3022.5,0.001]
[1764184297595,0.405504,3022.8,3022.5,0.001]
[1764184298194,0.405504,3022.8,3022.7,0.4754]
[1764184298491,0.70925269,3022.8,3022.7,0.4754]
[1764184299695,0.70925269,3022.8,3022.7,0.9672]
[1764184300501,6.34,3023.5,3022.7,1.39486726]
[1764184300795,0.51403674,3023.4,3022.8,0.4918]
[1764184300996,0.30403674,3023.3,3022.8,0.4918]
[1764184301195,0.30403674,3023.2,3022.5,0.4928]
[1764184301396,0.405504,3023.0,3022.5,0.4928]
[1764184301601,0.405504,3023.0,3022.5,4.25401656]
[1764184302097,0.405504,3022.9,3022.6,0.4918]
[1764184302503,0.405504,3023.0,3022.8,0.4754]
[1764184302699,0.30442339,3022.9,3022.8,0.4754]
[1764184302999,0.405504,3023.2,3022.8,0.4918]
[1764184303200,0.405504,3023.0,3022.8,0.4918]
[1764184303573,0.405504,3023.3,3022.9,0.4754]
[1764184303774,0.30457943,3023.2,3022.9,0.4754]
[1764184303975,0.405504,3023.0,3022.8,3.30810994]
[1764184304364,0.30472635,3022.9,3022.8,3.30810994]
[1764184304677,0.30473067,3022.9,3022.8,0.4542]
[1764184305205,6.34,3023.5,3022.8,0.4542]
[1764184305206,3.3068783,3024.0,3022.8,8.10723351]
[1764184305406,0.30473872,3023.9,3023.2,4.399815]
[1764184305704,0.30473872,3023.8,3023.3,6.61528792]
[1764184305889,0.30473872,3023.7,3023.4,0.66152879]
[1764184306200,0.71024272,3023.6,3023.4,1.11192879]
[1764184306405,0.30493612,3023.5,3023.4,0.66152879]
[1764184306603,3.30594195,3024.9,3024.0,0.4542]
[1764184306902,0.405504,3024.7,3023.6,0.72559411]
[1764184307101,0.30499992,3024.6,3023.6,0.72559411]
[1764184307304,0.76829992,3024.5,3023.5,0.4504]
[1764184307481,0.405504,3024.1,3023.6,3.30731578]
[1764184307683,0.405504,3023.9,3023.6,3.30731578]
[1764184308204,0.405504,3024.2,3023.8,0.4542]
[1764184308372,0.405504,3024.0,3023.8,0.4542]
[1764184308577,0.6733,3024.4,3023.8,0.4542]
[1764184308578,0.71033074,3023.9,3023.8,0.4542]
[1764184308778,3.30631294,3024.6,3023.8,0.9046]
[1764184308779,0.21,3024.6,3023.8,0.9046]
[1764184309002,0.30507577,3024.5,3024.3,0.4542]
[1764184309303,0.30507577,3024.4,3024.3,0.4542]
[1764184309606,0.30507577,3024.4,3023.7,0.4504]
[1764184309904,0.405504,3024.2,3023.6,4.540323]
[1764184310105,0.405504,3024.0,3023.7,0.54759171]
[1764184310295,0.405504,3024.0,3023.6,0.4504]
[1764184310478,3.51627092,3024.6,3023.9,0.4542]
[1764184310479,0.405504,3024.5,3023.9,0.4542]
[1764184310673,0.405504,3024.3,3023.9,0.4542]
[1764184310902,0.405504,3024.1,3023.9,0.4542]
[1764184311205,0.30509694,3024.0,3023.4,7.06540857]
[1764184311410,0.868804,3024.5,3023.4,7.81709943]
[1764184311582,3.71207338,3024.3,3023.6,3.30731578]
[1764184311901,0.30498874,3024.2,3023.6,3.30731578]
[1764184312107,0.405504,3024.0,3023.6,3.75771578]
[1764184312294,0.405504,3024.0,3023.6,7.06503156]
[1764184312606,0.405504,3024.2,3023.9,0.4542]
[1764184312777,0.405504,3024.0,3023.9,0.4542]
[1764184312977,3.51625943,3024.6,3023.9,0.4542]
[1764184313177,0.405504,3024.3,3023.9,0.4542]
[1764184313408,0.30514393,3024.2,3023.9,0.4542]
[1764184313707,0.405504,3024.0,3023.9,0.4542]
[1764184314085,0.405504,3024.3,3023.9,4.21156165]
[1764184314294,0.405504,3024.1,3023.9,4.21156165]
[1764184314810,0.405504,3024.4,3024.0,0.4542]
[1764184315110,0.30500475,3024.3,3024.0,0.4542]
[1764184315312,0.405504,3024.1,3024.0,0.4542]
[1764184315498,0.405504,3024.1,3023.7,3.30713216]
[1764184315811,3.7120719,3024.3,3023.7,0.4504]
[1764184316005,0.405504,3024.1,3023.6,0.4504]
[1764184316708,0.405504,3024.3,3023.6,0.4504]
[1764184316915,0.30481346,3024.2,3024.0,0.4542]
[1764184317111,0.405504,3024.3,3024.0,0.4542]
[1764184317285,3.71190472,3024.5,3024.0,0.4542]
[1764184317481,0.405504,3024.3,3024.0,0.4542]
[1764184317808,0.405504,3024.3,3024.1,0.1871]
[1764184317986,0.405504,3024.3,3024.2,0.4542]
[1764184318186,0.7101944,3024.3,3024.2,0.4542]
[1764184318995,0.7101944,3024.3,3023.8,3.30707816]
[1764184319194,0.405504,3024.3,3023.8,3.75747816]
[1764184319427,0.405504,3024.3,3023.9,0.4504]
[1764184320433,3.484,3025.8,3024.2,0.6413]
[1764184320434,0.1855,3025.0,3024.2,0.6413]
[1764184320619,0.4555,3024.0,3022.9,11.211642]
[1764184320927,0.405504,3023.4,3022.7,3.75863439]
[1764184321307,0.30474689,3023.3,3022.7,3.75863439]
[1764184321507,0.405504,3023.4,3022.7,3.75863439]
[1764184321713,0.405504,3023.4,3022.8,3.30918603]
[1764184321934,0.405504,3023.4,3022.8,3.75958603]
[1764184322413,0.3048405,3023.3,3022.8,3.75958603]
[1764184322602,3.71308204,3023.4,3022.8,3.75958603]
[1764184322803,0.405504,3023.4,3022.8,3.75958603]
[1764184323045,0.30476099,3023.3,3022.8,3.75958603]
[1764184323334,3.71303921,3023.4,3022.8,3.75958603]
[1764184323524,0.30477762,3023.3,3022.8,3.75958603]
[1764184323702,3.71303921,3023.4,3022.8,3.75958603]
[1764184323902,0.405504,3023.2,3022.8,0.001]
[1764184324326,0.405504,3023.1,3022.8,0.001]
[1764184324728,3.71338834,3023.1,3022.8,0.001]
[1764184326209,0.21,3023.5,3023.0,0.4971]
[1764184326410,0.92016148,3023.4,3023.1,0.4971]
[1764184326644,0.30465748,3023.3,3023.1,0.4971]
[1764184326825,0.71016148,3023.2,3023.1,0.4971]
[1764184327335,1.18906148,3023.2,3022.8,0.001]
[1764184327643,0.884404,3023.2,3022.8,0.001]
[1764184327826,1.373004,3023.2,3022.8,0.001]
[1764184328452,0.3048668,3023.1,3022.8,0.001]
[1764184328752,0.405504,3023.0,3022.8,0.001]
[1764184329248,0.405504,3023.2,3022.9,0.4971]
[1764184329547,0.71050163,3023.1,3023.0,0.4971]
[1764184329737,0.71050163,3023.1,3022.8,0.001]
[1764184329933,0.405504,3023.1,3022.8,0.001]
[1764184330846,3.71340632,3023.1,3022.8,0.001]
[1764184331553,0.405504,3023.1,3023.0,0.4971]
[1764184331853,0.71058087,3023.1,3023.0,0.4971]
[1764184332032,0.71058087,3023.1,3023.0,0.9922]
[1764184332233,0.405504,3023.1,3023.0,0.9922]
[1764184333122,0.21,3023.6,3023.0,4.30017221]
[1764184333325,3.30644094,3024.4,3023.5,0.4971]
[1764184333523,3.30644094,3024.4,3023.8,0.4971]
[1764184333524,0.51512898,3024.3,3023.8,0.4971]
[1764184333848,0.30512898,3024.2,3023.8,0.4971]
[1764184334039,0.21,3024.3,3023.8,0.4971]
[1764184334040,0.30512898,3024.1,3023.8,0.4971]
[1764184334243,0.30512898,3024.0,3023.8,0.4971]
[1764184334459,0.4822,3024.2,3023.8,0.4971]
[1764184334638,0.405504,3024.0,3023.8,0.4971]
[1764184335035,0.405504,3024.1,3023.8,0.4971]
[1764184335236,0.30515937,3024.0,3023.4,7.09023785]
[1764184335537,0.405504,3024.2,3023.5,0.70902379]
[1764184335742,0.405504,3024.0,3023.5,0.70902379]
[1764184335958,0.405504,3024.0,3023.5,1.18422379]
[1764184336143,0.405504,3024.1,3023.9,0.49]
[1764184336339,0.30516963,3024.0,3023.9,0.49]
[1764184336555,0.30516963,3024.0,3023.6,0.4752]
[1764184336856,0.405504,3024.2,3023.9,0.49]
[1764184337160,0.30521428,3024.1,3023.9,0.49]
[1764184337352,3.71216483,3024.2,3023.9,0.49]
[1764184337552,0.30524704,3024.1,3023.9,0.49]
[1764184337750,0.405504,3024.2,3023.9,0.49]
[1764184337956,0.30524701,3024.1,3024.0,0.49]
[1764184338556,0.30524701,3024.1,3023.7,0.4752]
[1764184338756,0.30524701,3024.0,3023.7,0.4752]
[1764184339066,4.19436404,3024.2,3023.4,7.09018873]
[1764184339368,4.19436404,3024.2,3023.5,0.70901887]
[1764184339369,0.30530997,3024.1,3023.5,0.70901887]
[1764184339557,0.30530997,3024.0,3023.6,3.30731578]
[1764184339754,4.19436404,3024.2,3023.6,3.30731578]
[1764184339959,0.30533518,3024.1,3023.6,3.78251578]
[1764184340149,0.30533518,3024.0,3023.6,3.78251578]
[1764184340470,4.19436404,3024.2,3023.6,3.78251578]
[1764184340668,0.30532075,3024.1,3023.6,3.78251578]
[1764184340834,0.30532075,3024.0,3023.6,3.78251578]
[1764184341037,3.71216404,3024.2,3023.6,3.78251578]
[1764184341237,0.30532068,3024.1,3023.6,3.78251578]
[1764184341536,0.30532068,3024.0,3023.6,3.78251578]
[1764184341733,3.71216404,3024.2,3023.6,3.78251578]
[1764184341966,0.30505373,3024.1,3023.6,3.78251578]
[1764184342172,0.30505373,3024.0,3023.6,3.78251578]
[1764184342369,0.4873,3023.7,3023.2,0.6852]
[1764184342572,0.405504,3023.6,3023.0,0.001]
[1764184342881,0.1907,3023.1,3023.0,0.001]
[1764184343657,4.40534589,3023.4,3023.0,0.001]
[1764184343984,0.405504,3023.2,3023.0,0.001]
[1764184344186,0.405504,3023.3,3023.0,0.001]
[1764184344382,0.405504,3023.3,3023.2,0.49]
[1764184344585,0.71050782,3023.3,3023.2,0.49]
[1764184344885,0.405504,3023.3,3023.2,0.49]
[1764184345084,0.405504,3023.2,3023.0,0.001]
[1764184345303,10.24237114,3023.1,3023.0,0.001]
[1764184345592,5.9205355,3023.1,3023.0,0.001]
[1764184345782,1.13109811,3023.0,3022.8,0.001]
[1764184345954,10.62777114,3022.9,3022.8,0.001]
[1764184346155,1.60129811,3022.8,3020.8,0.4752]
[1764184346356,0.600904,3022.6,3021.4,0.4752]
[1764184346554,0.90587861,3022.6,3021.4,0.4752]
[1764184346783,1.38807861,3022.6,3021.4,0.4752]
[1764184347082,1.38807861,3022.6,3021.2,3.3099037]
[1764184347290,1.38807861,3022.6,3021.1,3.78521351]
[1764184347466,1.38807861,3022.6,3021.1,0.4752]
[1764184347665,4.69648858,3022.6,3021.1,3.78523985]
[1764184348071,4.90648858,3022.6,3021.4,0.4752]
[1764184348273,5.33449957,3022.6,3021.4,0.4752]
[1764184348958,5.33449957,3022.6,3021.0,3.36012643]
[1764184348959,5.33449957,3022.6,3021.0,0.4752]
[1764184348960,14.3819921,3022.6,3021.0,0.4752]
[1764184349160,14.3819921,3022.6,3020.8,0.1873]
[1764184349407,1.13109811,3022.5,3020.8,0.1873]
[1764184349613,1.13109811,3022.5,3020.0,0.4752]
[1764184349614,0.405504,3020.8,3020.0,0.4752]
[1764184349906,0.774904,3020.8,3020.0,0.4752]
[1764184350978,0.405504,3020.9,3020.0,0.4752]
[1764184351779,0.211,3020.9,3020.1,6.62229726]
[1764184351981,0.211,3020.9,3020.2,0.70974973]
[1764184352207,0.211,3020.9,3020.2,1.18494973]
[1764184352510,0.405504,3020.8,3020.3,0.4752]
[1764184352686,0.405504,3021.0,3020.3,0.4752]
[1764184352878,0.405504,3021.0,3020.7,0.49]
[1764184353082,0.211,3021.4,3020.9,0.49]
[1764184353384,0.211,3021.7,3020.9,0.49]
[1764184353584,0.405504,3021.6,3020.9,0.49]
[1764184353893,7.02451522,3021.6,3020.9,0.49]
[1764184354210,3.71500961,3021.6,3020.9,0.49]
[1764184354710,1.32852496,3021.6,3020.9,0.49]
[1764184354884,0.887704,3021.6,3020.9,0.49]
[1764184355076,0.405504,3021.6,3020.9,0.49]
[1764184355281,0.405504,3021.4,3020.9,4.27546115]
[1764184355496,0.1949,3022.2,3021.0,4.733223]
[1764184355697,0.1949,3022.2,3021.4,3.30972396]
[1764184355907,0.4822,3022.8,3021.5,0.4752]
[1764184356086,0.51369859,3022.7,3021.5,0.4752]
[1764184356289,0.1949,3022.9,3021.6,8.588823]
[1764184356484,0.211,3022.8,3021.7,0.4752]
[1764184357309,0.211,3023.1,3021.9,0.72559411]
[1764184357500,0.211,3023.1,3022.0,1.65533651]
[1764184357706,0.211,3023.1,3022.0,10.87504868]
[1764184357905,0.4822,3023.4,3022.2,3.45069]
[1764184358080,0.51377735,3023.3,3022.2,2.701393]
[1764184358285,0.211,3023.3,3022.3,0.4752]
[1764184358510,0.405504,3023.2,3022.3,0.4752]
[1764184358815,0.211,3023.3,3022.3,0.4752]
[1764184359709,0.405504,3023.2,3022.3,0.4752]
[1764184359910,0.002,3022.8,3022.4,3.3086289]
[1764184360215,0.002,3022.8,3022.5,0.37838289]
[1764184360833,0.002,3022.8,3022.7,0.49]
[1764184361324,0.002,3022.8,3022.5,0.37838289]
[1764184361737,0.002,3022.8,3022.5,0.85358289]
[1764184362337,0.002,3022.8,3022.7,0.49]
[1764184362833,0.002,3022.8,3022.7,3.79830052]
[1764184363139,0.002,3022.8,3022.7,5.02200033]
[1764184364003,0.002,3022.8,3022.7,7.91240433]
[1764184364208,0.002,3022.8,3022.7,20.37397344]
[1764184364508,0.002,3022.8,3022.7,14.02775544]
[1764184364708,0.002,3022.8,3022.7,11.17373744]
[1764184365021,0.002,3022.8,3021.7,0.16789252]
[1764184365022,0.4931,3022.8,3022.2,0.1807]
[1764184365338,0.4931,3022.8,3021.6,0.2473]
[1764184365339,0.405504,3022.7,3021.7,0.4648]
[1764184365640,0.405504,3022.7,3021.6,0.001]
[1764184365641,0.405504,3022.4,3021.6,0.001]
[1764184365941,0.405504,3022.5,3021.6,3.31049753]
[1764184366141,0.405504,3022.4,3021.6,0.001]
[1764184366433,0.82678831,3022.4,3021.6,0.001]
[1764184366742,0.933404,3021.7,3021.6,0.001]
[1764184367738,0.405504,3021.7,3021.6,0.001]
[1764184368116,0.002,3022.8,3021.7,6.61879074]
[1764184368321,0.405504,3022.6,3021.7,7.44918922]
[1764184368835,0.405504,3022.6,3021.7,4.13979385]
[1764184369214,0.405504,3022.4,3021.7,7.44918922]
[1764184369419,0.7098,3022.7,3021.7,7.44918922]
[1764184369615,0.7091575,3022.6,3021.7,7.44918922]
[1764184369822,0.405504,3022.4,3021.7,7.44918922]
[1764184370335,0.405504,3022.6,3021.7,7.44918922]
[1764184370534,0.405504,3022.4,3021.7,7.44918922]
[1764184370707,0.405504,3022.4,3021.7,4.13979385]
[1764184370913,0.405504,3022.6,3021.7,7.44918922]
[1764184371126,0.405504,3022.4,3021.7,7.44918922]
[1764184371327,0.405504,3022.4,3021.7,4.13979385]
[1764184371520,0.405504,3022.5,3021.7,3.30939537]
[1764184371739,0.30394557,3022.4,3021.7,3.30939537]
[1764184372037,0.405504,3022.2,3021.7,6.61879074]
[1764184373216,0.405504,3022.2,3021.7,3.30939537]
[1764184373435,0.405504,3022.2,3021.7,6.61879074]
[1764184374644,0.405504,3022.0,3021.7,3.30939537]
[1764184374851,0.405504,3022.3,3021.6,0.001]
[1764184375014,0.405504,3022.1,3021.6,0.001]
[1764184375438,0.72759411,3022.8,3021.6,0.001]
[1764184375439,0.961204,3021.7,3021.6,0.001]
[1764184375761,0.961204,3021.7,3021.3,0.001]
[1764184375762,1.13109811,3021.6,3021.3,0.001]
[1764184376046,0.584204,3021.4,3021.3,0.001]
[1764184376253,0.405504,3021.3,3019.9,0.1807]
[1764184376435,0.405504,3021.3,3020.0,0.34921508]
[1764184376436,0.405504,3021.1,3020.0,0.34921508]
[1764184376624,1.02991198,3021.2,3019.9,0.1807]
[1764184376625,0.405504,3020.9,3019.9,0.1807]
[1764184376816,0.405504,3020.7,3019.9,3.49204922]
[1764184377018,0.30401241,3020.6,3019.9,3.49204922]
[1764184377218,0.405504,3020.6,3019.9,3.49204922]
[1764184377512,0.405504,3020.6,3019.9,6.80341714]
[1764184377714,0.405504,3020.6,3019.9,7.54938885]
[1764184378116,0.405504,3020.7,3019.9,8.01418885]
[1764184378344,0.30385714,3020.6,3019.9,4.70282093]
[1764184378544,0.405504,3020.7,3019.9,3.49204922]
[1764184378746,0.405504,3020.7,3019.5,0.1807]
[1764184378747,0.4911,3020.0,3019.5,0.1807]
[1764184378945,0.405504,3019.9,3019.5,0.1807]
[1764184379320,0.405504,3019.8,3019.1,3.31224537]
[1764184379642,0.405504,3019.8,3019.2,0.72559411]
[1764184379842,0.405504,3020.1,3019.3,0.78148849]
[1764184380048,0.405504,3020.1,3019.7,0.4938]
[1764184380224,0.1809,3020.8,3020.0,0.4938]
[1764184380419,0.92004871,3020.7,3020.1,0.5445]
[1764184380618,0.405504,3020.5,3020.1,0.5445]
[1764184380820,0.1809,3021.1,3020.1,7.16677177]
[1764184381020,0.30374959,3021.0,3020.4,0.4938]
[1764184381351,0.30374959,3021.0,3019.7,3.57253943]
[1764184381352,0.4911,3020.5,3019.6,0.1807]
[1764184381650,0.405504,3020.2,3019.3,7.08885192]
[1764184381948,0.405504,3020.2,3019.1,3.31221043]
[1764184381949,0.405504,3020.0,3019.1,3.31221043]
[1764184382122,0.30360876,3019.9,3019.1,3.31221043]
[1764184382320,0.904304,3020.0,3019.1,4.03921822]
[1764184382516,0.30345836,3019.9,3019.1,4.03921822]
[1764184382747,0.70900969,3019.8,3019.1,4.03921822]
[1764184383047,0.405504,3019.8,3019.1,7.35146359]
[1764184383250,0.405504,3020.2,3019.2,0.4648]
[1764184383457,0.405504,3020.0,3019.2,1.26449636]
[1764184383665,0.405504,3019.8,3019.3,0.4648]
[1764184383964,0.405504,3020.0,3019.3,0.4648]
[1764184384323,0.1809,3021.1,3019.3,0.4648]
[1764184384324,0.4988,3021.0,3019.9,0.4938]
[1764184384530,0.30322556,3020.9,3020.2,0.4938]
[1764184384767,0.30322556,3020.9,3019.7,0.211]
[1764184384768,0.0646,3021.7,3020.8,0.4938]
[1764184384968,0.30331425,3021.6,3020.9,6.62054354]
[1764184385176,0.30331425,3021.6,3020.8,6.62072336]
[1764184385177,0.30331425,3021.5,3020.8,6.62072336]
[1764184385339,0.6797,3022.1,3021.0,0.4648]
[1764184385528,0.30330201,3022.0,3021.5,0.1807]
[1764184385724,0.30330201,3021.9,3021.5,0.1807]
[1764184385926,0.30330201,3021.8,3021.5,0.1807]
[1764184386237,0.211,3022.1,3021.7,0.4805]
[1764184386457,0.30332074,3022.0,3021.7,0.4805]
[1764184386666,0.30332074,3021.9,3021.7,0.4805]
[1764184386840,0.211,3022.3,3021.7,0.4805]
[1764184386841,0.211,3022.3,3021.7,3.78989307]
[1764184387032,0.72784832,3022.2,3021.7,3.78989307]
[1764184387368,0.002,3022.5,3021.8,0.4658]
[1764184387929,0.002,3022.5,3021.6,3.30947585]
[1764184388427,0.002,3022.5,3021.6,6.61898074]
[1764184388650,0.407504,3022.5,3021.6,6.61898074]
[1764184389271,0.405504,3022.3,3021.1,0.1894]
[1764184389567,0.405504,3022.1,3021.2,2.639417]
[1764184389738,0.405504,3021.8,3020.7,3.31049094]
[1764184389933,0.405504,3021.6,3020.7,0.70868727]
[1764184390133,0.616504,3021.6,3020.4,3.31081975]
[1764184390439,0.616504,3021.6,3020.3,0.0507]
[1764184390440,0.405504,3021.4,3020.3,0.0507]
[1764184390836,0.405504,3021.2,3020.3,0.0507]
[1764184391038,0.4968,3021.3,3019.9,0.211]
[1764184391039,0.405504,3021.0,3019.9,3.31136792]
[1764184391358,1.34209811,3021.0,3019.9,3.31136792]
[1764184391672,0.405504,3020.8,3019.6,3.31169691]
[1764184391973,3.30978912,3021.4,3019.6,3.31169691]
[1764184391974,0.4968,3021.8,3020.0,0.05]
[1764184392266,1.22239411,3021.9,3020.5,4.734649]
[1764184392472,0.3986,3021.7,3020.5,4.734649]
[1764184392634,0.405504,3021.6,3020.5,5.200449]
[1764184392836,0.405504,3021.6,3020.6,0.5250449]
[1764184393056,3.71501083,3021.6,3020.6,6.62120108]
[1764184393334,0.405504,3021.4,3020.1,3.50050866]
[1764184393558,0.30360053,3021.3,3020.2,7.298878]
[1764184394150,0.30360053,3021.3,3020.3,0.451]
[1764184394499,0.30360053,3021.3,3020.4,0.7284078]
[1764184394846,0.616504,3021.4,3020.5,0.451]
[1764184395370,3.30985452,3021.3,3020.6,3.31060054]
[1764184397335,0.405504,3021.4,3020.6,3.31060054]
[1764184397336,3.30975768,3021.4,3020.6,7.07220108]
[1764184397552,0.616504,3021.6,3020.7,0.451]
[1764184397751,0.616504,3021.6,3020.8,0.70722011]
[1764184397952,0.211,3021.6,3020.8,0.70722011]
[1764184398158,0.211,3021.8,3020.9,0.451]
[1764184398367,0.405504,3021.7,3020.9,0.451]
[1764184399579,0.405504,3021.7,3020.8,0.70722011]
[1764184399755,0.405504,3021.7,3020.4,0.7294078]
[1764184399756,0.405504,3021.5,3020.6,0.72559411]
[1764184399953,0.405504,3021.5,3020.6,1.15042453]
[1764184400153,0.493,3021.5,3020.6,1.15042453]
[1764184400369,0.493,3021.5,3020.6,0.42483042]
[1764184400752,0.405504,3021.4,3020.6,0.42483042]
[1764184402003,3.30923314,3021.9,3020.6,0.42483042]
[1764184402004,0.6806,3022.0,3021.3,0.6438]
[1764184402187,0.30436792,3021.9,3021.3,0.6438]
[1764184402387,3.30865379,3022.4,3021.3,0.6438]
[1764184402388,3.49100331,3022.9,3021.9,3.4685]
[1764184402683,0.30652169,3022.8,3022.4,0.5015]
[1764184402865,29.87329,3022.5,3022.4,0.5015]
[1764184403060,29.87329,3022.5,3022.0,0.6335]
[1764184403381,29.87329,3022.5,3022.0,0.1825]
[1764184403973,29.87329,3022.5,3022.1,3.30895734]
[1764184404579,29.87329,3022.5,3022.1,6.61791468]
[1764184404778,29.87329,3022.5,3022.1,3.30895734]
[1764184404970,29.87329,3022.5,3022.0,3.49154282]
[1764184405167,29.87329,3022.5,3022.0,3.8618971]
[1764184405485,29.87329,3022.5,3022.0,4.3128971]
[1764184405675,0.405504,3022.4,3022.0,0.55285428]
[1764184405882,0.405504,3022.4,3022.0,3.49154881]
[1764184406578,0.405504,3022.4,3021.9,3.30912441]
[1764184407170,0.405504,3022.4,3021.9,6.61830075]
[1764184407689,0.405504,3022.4,3021.9,3.30912441]
[1764184408073,0.405504,3022.4,3021.8,3.30928585]
[1764184408273,0.405504,3022.4,3021.9,0.73306608]
[1764184408470,0.522,3021.9,3021.3,0.1825]
[1764184408670,0.405504,3021.8,3020.9,0.6335]
[1764184408870,0.405504,3021.8,3020.9,1.35909411]
[1764184409172,0.405504,3021.8,3021.0,0.72559411]
[1764184409384,0.405504,3021.8,3021.0,1.19252896]
[1764184409582,0.405504,3021.8,3021.1,0.0365]
[1764184410087,0.616504,3021.8,3021.1,0.0365]
[1764184410293,0.616504,3021.8,3021.1,3.34651399]
[1764184410294,0.405504,3021.6,3021.1,3.34651399]
[1764184410599,0.405504,3021.6,3020.6,0.05]
[1764184410600,0.405504,3021.1,3020.6,2.190308]
[1764184410761,0.405504,3021.1,3020.5,6.62142028]
[1764184410965,0.4574,3021.2,3020.5,6.62142028]
[1764184410966,0.405504,3021.2,3020.5,6.62142028]
[1764184412091,0.405504,3021.2,3020.5,3.31071014]
[1764184412295,0.405504,3021.2,3020.6,0.7256008]
[1764184412491,0.405504,3021.2,3020.7,3.31049094]
[1764184412697,0.405504,3021.2,3020.6,3.31055786]
[1764184412990,0.405504,3021.2,3020.6,6.6211584]
[1764184413363,0.211,3021.3,3020.6,6.6211584]
[1764184413364,0.616504,3021.3,3020.6,7.0721584]
[1764184413560,0.405504,3021.3,3020.6,7.0721584]
[1764184414200,0.72559411,3021.8,3021.2,0.4978]
[1764184414364,0.30489079,3021.7,3021.2,0.4978]
[1764184414565,0.30489079,3021.6,3021.1,3.30999555]
[1764184414765,0.405504,3021.5,3021.1,3.30999555]
[1764184415299,0.405504,3021.5,3020.8,6.62072933]
[1764184415300,0.898504,3021.5,3020.8,6.62072933]
[1764184416500,4.20813471,3021.5,3020.7,3.31047194]
[1764184416698,0.898504,3021.5,3020.7,6.62096288]
[1764184416888,4.20815638,3021.5,3020.7,6.62096288]
[1764184417797,0.405504,3021.3,3020.7,6.62096288]
[1764184417977,0.405504,3021.4,3020.7,6.62096288]
[1764184418177,0.5159372,3021.3,3020.7,6.62096288]
[1764184418378,0.211,3021.3,3020.7,6.62096288]
[1764184418699,0.211,3021.3,3020.5,0.452]
[1764184418700,0.211,3021.3,3020.6,6.62120108]
[1764184419089,0.20603476,3021.3,3020.6,6.62120108]
[1764184419397,3.51591522,3021.3,3020.6,3.31060054]
[1764184419572,3.51591522,3021.3,3020.6,4.05737401]
[1764184419901,3.51591522,3021.3,3020.6,3.31060054]
[1764184420089,3.51591522,3021.3,3020.5,0.001]
[1764184420090,0.405504,3021.1,3020.5,0.001]
[1764184420395,0.405504,3020.9,3020.5,3.31169696]
[1764184420599,0.405504,3020.7,3020.5,0.001]
[1764184421477,0.405504,3020.8,3020.5,0.001]
[1764184422068,0.898504,3020.8,3020.5,0.001]
[1764184422770,4.20890046,3020.8,3020.5,0.001]
[1764184425076,0.898504,3020.8,3020.5,0.001]
[1764184425301,0.405504,3020.8,3020.5,0.001]
[1764184425996,0.405504,3020.7,3020.5,0.001]
[1764184426499,0.616504,3021.1,3020.7,0.4982]
[1764184426800,0.405504,3020.9,3020.7,0.4982]
[1764184426974,0.616504,3021.1,3020.7,0.4982]
[1764184427177,0.405504,3020.9,3020.7,0.4982]
[1764184427573,0.405504,3020.7,3020.5,3.31166516]
[1764184427779,0.405504,3021.0,3020.5,0.001]
[1764184427992,0.30468318,3020.9,3020.5,0.001]
[1764184428301,0.405504,3020.8,3020.5,0.001]
[1764184429700,0.894104,3020.8,3020.5,0.001]
[1764184430699,4.20448731,3020.8,3020.5,0.001]
[1764184430875,0.211,3020.7,3020.5,0.001]
[1764184431472,3.80520054,3020.6,3020.5,0.001]
[1764184431872,4.29380054,3020.6,3020.5,0.001]
[1764184432104,5.00392173,3020.6,3020.5,0.001]
[1764184434181,5.72951584,3020.6,3020.5,0.001]
[1764184440716,5.73010353,3020.6,3020.5,0.001]
[1764184440919,6.43315822,3020.6,3020.5,0.001]
[1764184441219,6.64415822,3020.6,3020.5,0.001]
[1764184441509,5.94110353,3020.6,3020.5,0.001]
[1764184442107,4.11040542,3020.6,3020.5,0.001]
[1764184442307,0.30520488,3020.6,3020.5,0.4992]
[1764184442886,0.30520488,3020.6,3020.5,0.9668]
[1764184443087,0.211,3021.0,3020.5,0.9668]
[1764184443409,0.30516172,3020.9,3020.6,0.4676]
[1764184443616,0.30516172,3020.8,3020.6,0.4676]
[1764184443908,3.30983351,3021.3,3020.9,0.4982]
[1764184444094,0.30514932,3021.2,3021.0,0.4982]
[1764184444294,0.30514932,3021.1,3021.0,0.4982]
[1764184444691,0.71065332,3021.1,3021.0,0.4982]
[1764184445412,0.405504,3021.0,3020.7,0.4676]